[Event "Early-Titled-Tuesday-Blitz-February-27-2024"]
[Site "Chess.com"]
[Date "2024.02.27"]
[Round "5"]
[White "Defenstrator"]
[Black "Kotlyar_K"]
[Result "0-1"]
[WhiteElo "2408"]
[BlackElo "2574"]
[TimeControl "180+1"]
[EndTime "8:54:00 PST"]
[Termination "Kotlyar_K won by resignation"]

1. Nc3 {[%clk 0:03:00.3]} 1... Nf6 {[%clk 0:02:58]} 2. e4 {[%clk 0:02:59]} 2...
d6 {[%clk 0:02:54.8]} 3. d4 {[%clk 0:02:54.9]} 3... g6 {[%clk 0:02:53.7]} 4. Bg5
{[%clk 0:02:54.9]} 4... Bg7 {[%clk 0:02:54.1]} 5. e5 {[%clk 0:02:55.4]} 5...
Nfd7 {[%clk 0:02:43]} 6. Nd5 {[%clk 0:02:52.2]} 6... Nc6 {[%clk 0:02:41.8]} 7.
Bb5 {[%clk 0:02:51.9]} 7... h6 {[%clk 0:02:36.8]} 8. Bh4 {[%clk 0:02:21.3]} 8...
g5 {[%clk 0:02:36.1]} 9. e6 {[%clk 0:02:13.8]} 9... fxe6 {[%clk 0:01:50.3]} 10.
Qh5+ {[%clk 0:02:10.8]} 10... Kf8 {[%clk 0:01:50.7]} 11. Nf4 {[%clk 0:02:03.7]}
11... gxf4 {[%clk 0:01:46.5]} 12. Ne2 {[%clk 0:02:03.9]} 12... Nf6 {[%clk
0:01:44.9]} 13. Qf3 {[%clk 0:01:48.5]} 13... e5 {[%clk 0:01:40]} 14. dxe5 {[%clk
0:01:41.9]} 14... dxe5 {[%clk 0:01:40.9]} 15. Rd1 {[%clk 0:01:41.5]} 15... Qe8
{[%clk 0:01:40.5]} 16. Qc3 {[%clk 0:01:31]} 16... Ne4 {[%clk 0:01:28.2]} 17. Qf3
{[%clk 0:01:20.9]} 17... Nd6 {[%clk 0:01:16.3]} 18. Ba4 {[%clk 0:01:14]} 18...
Bd7 {[%clk 0:01:00.6]} 19. g3 {[%clk 0:01:11.4]} 19... Qg6 {[%clk 0:00:32.2]}
20. gxf4 {[%clk 0:01:08.5]} 20... e4 {[%clk 0:00:32.7]} 21. Qe3 {[%clk
0:01:02.1]} 21... Qh5 {[%clk 0:00:32.1]} 22. Bg3 {[%clk 0:00:57.7]} 22... Qa5+
{[%clk 0:00:31.2]} 23. c3 {[%clk 0:00:40.6]} 23... Qxa4 {[%clk 0:00:29.2]} 24.
Rg1 {[%clk 0:00:29.5]} 24... Nf5 {[%clk 0:00:19.9]} 25. Qd2 {[%clk 0:00:25.1]}
25... Be6 {[%clk 0:00:19.8]} 26. Nc1 {[%clk 0:00:17.6]} 26... Rd8 {[%clk
0:00:17.5]} 27. Qe2 {[%clk 0:00:17.9]} 27... Qxd1+ {[%clk 0:00:16.8]} 28. Qxd1
{[%clk 0:00:18.3]} 28... Rxd1+ {[%clk 0:00:17.7]} 29. Kxd1 {[%clk 0:00:18.9]}
29... Kf7 {[%clk 0:00:18.6]} 30. Ne2 {[%clk 0:00:19.4]} 30... Rd8+ {[%clk
0:00:19.5]} 31. Kc2 {[%clk 0:00:20.2]} 31... Bc4 {[%clk 0:00:18.9]} 32. Nc1
{[%clk 0:00:19.9]} 32... e3 {[%clk 0:00:16.3]} 33. fxe3 {[%clk 0:00:18.6]} 33...
Nxe3+ {[%clk 0:00:17.2]} 34. Kb1 {[%clk 0:00:19.2]} 34... Be6 {[%clk 0:00:17.9]}
0-1

[Event "Early-Titled-Tuesday-Blitz-February-27-2024"]
[Site "Chess.com"]
[Date "2024.02.27"]
[Round "5"]
[White "Nuvas"]
[Black "Ticoluis"]
[Result "0-1"]
[WhiteElo "2738"]
[BlackElo "2489"]
[TimeControl "180+1"]
[EndTime "8:54:00 PST"]
[Termination "Ticoluis won by checkmate"]

1. d4 {[%clk 0:03:00.9]} 1... Nf6 {[%clk 0:02:54.5]} 2. c4 {[%clk 0:02:59.9]}
2... g6 {[%clk 0:02:54.6]} 3. Nc3 {[%clk 0:02:59.7]} 3... Bg7 {[%clk 0:02:54.7]}
4. e4 {[%clk 0:02:59.9]} 4... d6 {[%clk 0:02:55.4]} 5. Be2 {[%clk 0:03:00.3]}
5... O-O {[%clk 0:02:55]} 6. Bg5 {[%clk 0:03:01]} 6... c5 {[%clk 0:02:54.9]} 7.
d5 {[%clk 0:03:01.3]} 7... e6 {[%clk 0:02:50.5]} 8. Qd2 {[%clk 0:03:01.3]} 8...
exd5 {[%clk 0:02:48.5]} 9. exd5 {[%clk 0:03:02.2]} 9... Qb6 {[%clk 0:02:46.3]}
10. Nf3 {[%clk 0:03:00]} 10... Bf5 {[%clk 0:02:45.9]} 11. Nh4 {[%clk 0:02:57.9]}
11... Ne4 {[%clk 0:02:42.7]} 12. Nxe4 {[%clk 0:02:57.8]} 12... Bxe4 {[%clk
0:02:41.8]} 13. f3 {[%clk 0:02:34.2]} 13... Qxb2 {[%clk 0:02:36.9]} 14. Rc1
{[%clk 0:02:34.1]} 14... Qxd2+ {[%clk 0:02:21.1]} 15. Bxd2 {[%clk 0:02:33.4]}
15... Bf5 {[%clk 0:02:18.8]} 16. Nxf5 {[%clk 0:02:31.3]} 16... gxf5 {[%clk
0:02:10.1]} 17. Bd3 {[%clk 0:02:31.5]} 17... Nd7 {[%clk 0:02:04]} 18. Bxf5
{[%clk 0:02:25.5]} 18... Nb6 {[%clk 0:02:00.3]} 19. Kd1 {[%clk 0:02:10.9]} 19...
Rfe8 {[%clk 0:01:56.5]} 20. h4 {[%clk 0:02:09.2]} 20... Bd4 {[%clk 0:01:53.3]}
21. h5 {[%clk 0:02:09.2]} 21... Be3 {[%clk 0:01:50.5]} 22. Rh4 {[%clk
0:02:00.8]} 22... Bxd2 {[%clk 0:01:37.7]} 23. Kxd2 {[%clk 0:02:01.7]} 23... h6
{[%clk 0:01:37.4]} 24. Rg4+ {[%clk 0:01:59.9]} 24... Kf8 {[%clk 0:01:37.8]} 25.
Rf4 {[%clk 0:01:49]} 25... Kg7 {[%clk 0:01:33.5]} 26. Rg4+ {[%clk 0:01:42.2]}
26... Kf8 {[%clk 0:01:32.2]} 27. Bd3 {[%clk 0:01:42.1]} 27... Re5 {[%clk
0:01:28.8]} 28. Rh1 {[%clk 0:01:35.5]} 28... Rae8 {[%clk 0:01:25.2]} 29. Rf4
{[%clk 0:01:36]} 29... Kg7 {[%clk 0:01:23.2]} 30. Rhh4 {[%clk 0:01:32.8]} 30...
Rg5 {[%clk 0:01:18.6]} 31. g4 {[%clk 0:01:32.7]} 31... Nd7 {[%clk 0:01:14.3]}
32. Rh2 {[%clk 0:01:29.3]} 32... Ne5 {[%clk 0:01:07.6]} 33. Bf5 {[%clk
0:01:27.3]} 33... a6 {[%clk 0:01:03.8]} 34. a4 {[%clk 0:01:26.2]} 34... b5
{[%clk 0:00:56.8]} 35. cxb5 {[%clk 0:01:25.5]} 35... axb5 {[%clk 0:00:56.8]} 36.
axb5 {[%clk 0:01:25.5]} 36... Rb8 {[%clk 0:00:57]} 37. Kc3 {[%clk 0:01:11.2]}
37... Rxb5 {[%clk 0:00:48.2]} 38. Rf2 {[%clk 0:01:10.8]} 38... Ra5 {[%clk
0:00:45.4]} 39. Kb3 {[%clk 0:01:08]} 39... Rb5+ {[%clk 0:00:42.3]} 40. Ka3
{[%clk 0:00:55.6]} 40... Kh8 {[%clk 0:00:37.2]} 41. Ra4 {[%clk 0:00:53.3]} 41...
Rg8 {[%clk 0:00:34.2]} 42. f4 {[%clk 0:00:52.1]} 42... Nxg4 {[%clk 0:00:31.8]}
43. Re2 {[%clk 0:00:47.8]} 43... Nf6 {[%clk 0:00:31]} 44. Re7 {[%clk 0:00:44.1]}
44... Nxd5 {[%clk 0:00:26.6]} 45. Rxf7 {[%clk 0:00:42.3]} 45... Rg3+ {[%clk
0:00:22]} 46. Ka2 {[%clk 0:00:42.8]} 46... Nc3+ {[%clk 0:00:21.6]} 47. Ka3
{[%clk 0:00:43.4]} 47... Nb1+ {[%clk 0:00:20.2]} 48. Ka2 {[%clk 0:00:43.7]}
48... Nc3+ {[%clk 0:00:19.4]} 49. Ka3 {[%clk 0:00:44.3]} 49... Nxa4+ {[%clk
0:00:19.6]} 50. Kxa4 {[%clk 0:00:44]} 50... Rb4+ {[%clk 0:00:20.2]} 51. Ka5
{[%clk 0:00:43.6]} 51... Ra3# {[%clk 0:00:20.7]} 0-1

[Event "Early-Titled-Tuesday-Blitz-February-27-2024"]
[Site "Chess.com"]
[Date "2024.02.27"]
[Round "5"]
[White "KorolDimitriy75"]
[Black "VladimirBugayev"]
[Result "1/2-1/2"]
[WhiteElo "2422"]
[BlackElo "2241"]
[TimeControl "180+1"]
[EndTime "8:54:00 PST"]
[Termination "Game drawn by repetition"]

1. d4 {[%clk 0:03:00.9]} 1... Nf6 {[%clk 0:02:59.1]} 2. c4 {[%clk 0:03:01]} 2...
c5 {[%clk 0:02:59.2]} 3. d5 {[%clk 0:03:00.9]} 3... b5 {[%clk 0:02:59.8]} 4. Nd2
{[%clk 0:03:00.9]} 4... b4 {[%clk 0:02:58.9]} 5. b3 {[%clk 0:03:00.5]} 5... g6
{[%clk 0:02:57.8]} 6. Bb2 {[%clk 0:03:00.3]} 6... Bg7 {[%clk 0:02:58.3]} 7. e4
{[%clk 0:03:00.5]} 7... d6 {[%clk 0:02:58.7]} 8. Ngf3 {[%clk 0:03:00.8]} 8...
O-O {[%clk 0:02:58.4]} 9. h3 {[%clk 0:03:00.8]} 9... a5 {[%clk 0:02:54.3]} 10.
a4 {[%clk 0:03:00.5]} 10... e5 {[%clk 0:02:47.6]} 11. dxe6 {[%clk 0:02:42.1]}
11... Bxe6 {[%clk 0:02:47.2]} 12. Bd3 {[%clk 0:02:40.3]} 12... Nc6 {[%clk
0:02:46.7]} 13. O-O {[%clk 0:02:39.7]} 13... Qc7 {[%clk 0:02:46.9]} 14. Qc2
{[%clk 0:02:37.6]} 14... Ne5 {[%clk 0:02:37.9]} 15. Rad1 {[%clk 0:02:26.4]}
15... Nfd7 {[%clk 0:02:29.9]} 16. Be2 {[%clk 0:02:08.9]} 16... Nxf3+ {[%clk
0:02:18.8]} 17. Nxf3 {[%clk 0:02:09.8]} 17... Ne5 {[%clk 0:02:18.6]} 18. Ng5
{[%clk 0:01:54.7]} 18... h6 {[%clk 0:02:08.1]} 19. Nf3 {[%clk 0:01:13.7]} 19...
Rad8 {[%clk 0:01:36.2]} 20. Rfe1 {[%clk 0:01:13.4]} 20... f5 {[%clk 0:01:27.8]}
21. Nxe5 {[%clk 0:00:48.6]} 21... dxe5 {[%clk 0:01:22.1]} 22. Bf3 {[%clk
0:00:16.9]} 22... f4 {[%clk 0:01:14.9]} 23. Qe2 {[%clk 0:00:15.5]} 23... Rxd1
{[%clk 0:01:05.5]} 24. Rxd1 {[%clk 0:00:16.4]} 24... Rd8 {[%clk 0:01:05.5]} 25.
Rxd8+ {[%clk 0:00:14.3]} 25... Qxd8 {[%clk 0:01:06.4]} 26. Qd1 {[%clk
0:00:14.2]} 26... Qxd1+ {[%clk 0:01:03.9]} 27. Bxd1 {[%clk 0:00:15.1]} 27... g5
{[%clk 0:00:57]} 28. Bg4 {[%clk 0:00:14.9]} 28... Bf7 {[%clk 0:00:51.9]} 29. Bd7
{[%clk 0:00:14.2]} 29... h5 {[%clk 0:00:51.4]} 30. f3 {[%clk 0:00:14.4]} 30...
Kf8 {[%clk 0:00:51.4]} 31. Bc6 {[%clk 0:00:13.4]} 31... Ke7 {[%clk 0:00:51.4]}
32. Kf2 {[%clk 0:00:12.7]} 32... Be6 {[%clk 0:00:50.9]} 33. Bd5 {[%clk
0:00:11.9]} 33... Bd7 {[%clk 0:00:50.6]} 34. Ke2 {[%clk 0:00:11.5]} 34... g4
{[%clk 0:00:50.6]} 35. hxg4 {[%clk 0:00:10.7]} 35... hxg4 {[%clk 0:00:50.6]} 36.
Kf2 {[%clk 0:00:10.7]} 36... Bf6 {[%clk 0:00:49.7]} 37. Ke2 {[%clk 0:00:09.5]}
37... Kd6 {[%clk 0:00:50.2]} 38. Bc1 {[%clk 0:00:08.4]} 38... Bh4 {[%clk
0:00:49.5]} 39. Bd2 {[%clk 0:00:08.4]} 39... g3 {[%clk 0:00:45.9]} 40. Bc1
{[%clk 0:00:07.8]} 40... Bf6 {[%clk 0:00:42.4]} 41. Bd2 {[%clk 0:00:07.6]} 41...
Bc8 {[%clk 0:00:40]} 42. Bc1 {[%clk 0:00:07.4]} 42... Bg5 {[%clk 0:00:39.9]} 43.
Bd2 {[%clk 0:00:07.7]} 43... Bh4 {[%clk 0:00:40.7]} 44. Bc1 {[%clk 0:00:07.7]}
44... Bh3 {[%clk 0:00:41.3]} 45. Kf1 {[%clk 0:00:07.7]} 45... Bd7 {[%clk
0:00:40.2]} 46. Ke2 {[%clk 0:00:07.7]} 46... Bh3 {[%clk 0:00:39.5]} 47. Kf1
{[%clk 0:00:07.9]} 47... Bd7 {[%clk 0:00:38.7]} 48. Ke2 {[%clk 0:00:08.2]}
1/2-1/2

[Event "Early-Titled-Tuesday-Blitz-February-27-2024"]
[Site "Chess.com"]
[Date "2024.02.27"]
[Round "5"]
[White "Kunalm64"]
[Black "dealshark"]
[Result "1-0"]
[WhiteElo "2579"]
[BlackElo "2403"]
[TimeControl "180+1"]
[EndTime "8:54:02 PST"]
[Termination "Kunalm64 won on time"]

1. e4 {[%clk 0:02:59.5]} 1... c6 {[%clk 0:02:59.9]} 2. d4 {[%clk 0:02:59.1]}
2... d5 {[%clk 0:03:00.8]} 3. e5 {[%clk 0:02:59.5]} 3... Bf5 {[%clk 0:03:00.7]}
4. h4 {[%clk 0:02:59.6]} 4... h5 {[%clk 0:03:00.5]} 5. Bd3 {[%clk 0:02:59.5]}
5... Bxd3 {[%clk 0:03:00.8]} 6. Qxd3 {[%clk 0:03:00.4]} 6... e6 {[%clk
0:03:01.4]} 7. Bg5 {[%clk 0:03:00.2]} 7... Ne7 {[%clk 0:02:58.2]} 8. Nf3 {[%clk
0:02:59]} 8... Nd7 {[%clk 0:02:58.1]} 9. Nbd2 {[%clk 0:02:57.4]} 9... f6 {[%clk
0:02:58.4]} 10. exf6 {[%clk 0:02:52.4]} 10... gxf6 {[%clk 0:02:59.3]} 11. Bf4
{[%clk 0:02:52]} 11... Kf7 {[%clk 0:02:58.7]} 12. O-O {[%clk 0:02:29.3]} 12...
Bh6 {[%clk 0:02:54.9]} 13. Bxh6 {[%clk 0:02:23.7]} 13... Rxh6 {[%clk 0:02:55.8]}
14. Rfe1 {[%clk 0:02:23.5]} 14... Nf5 {[%clk 0:02:39.9]} 15. Rxe6 {[%clk
0:02:11.9]} 15... Kxe6 {[%clk 0:02:23.7]} 16. Re1+ {[%clk 0:02:11.4]} 16... Kf7
{[%clk 0:02:19.6]} 17. Qxf5 {[%clk 0:02:11.3]} 17... Nf8 {[%clk 0:01:58]} 18.
Re3 {[%clk 0:01:50.6]} 18... Kg7 {[%clk 0:01:30.2]} 19. Nf1 {[%clk 0:01:26.2]}
19... Qc7 {[%clk 0:01:05.1]} 20. Ng3 {[%clk 0:01:24.8]} 20... Qf7 {[%clk
0:01:04.5]} 21. Qf4 {[%clk 0:01:15]} 21... Rh7 {[%clk 0:00:41.1]} 22. Re7 {[%clk
0:01:00.9]} 22... Qxe7 {[%clk 0:00:31.1]} 23. Nf5+ {[%clk 0:01:00.9]} 23... Kf7
{[%clk 0:00:31.5]} 24. Nxe7 {[%clk 0:00:59.1]} 24... Kxe7 {[%clk 0:00:32]} 25.
Qc7+ {[%clk 0:00:58.7]} 25... Nd7 {[%clk 0:00:31.9]} 26. Qxb7 {[%clk 0:00:55.4]}
26... Rb8 {[%clk 0:00:19.5]} 27. Qxc6 {[%clk 0:00:55.4]} 27... Rxb2 {[%clk
0:00:19.6]} 28. Qxd5 {[%clk 0:00:55]} 28... Rb1+ {[%clk 0:00:13.5]} 29. Kh2
{[%clk 0:00:54.4]} 29... Rg7 {[%clk 0:00:12.5]} 30. c4 {[%clk 0:00:49.5]} 30...
Rb8 {[%clk 0:00:10.7]} 31. c5 {[%clk 0:00:43.6]} 31... Rd8 {[%clk 0:00:08.2]}
32. Qd6+ {[%clk 0:00:43.3]} 32... Ke8 {[%clk 0:00:07.5]} 33. c6 {[%clk
0:00:38.3]} 33... Nf8 {[%clk 0:00:06.2]} 34. Qxf6 {[%clk 0:00:35.1]} 34... Rf7
{[%clk 0:00:06.2]} 35. Qe5+ {[%clk 0:00:30.5]} 35... Re7 {[%clk 0:00:05.9]} 36.
Qxh5+ {[%clk 0:00:30.5]} 36... Rf7 {[%clk 0:00:06.5]} 37. Ne5 {[%clk 0:00:30.4]}
37... Rd7 {[%clk 0:00:03]} 38. cxd7+ {[%clk 0:00:30.1]} 1-0

[Event "Early-Titled-Tuesday-Blitz-February-27-2024"]
[Site "Chess.com"]
[Date "2024.02.27"]
[Round "5"]
[White "Atousa"]
[Black "campochess"]
[Result "1-0"]
[WhiteElo "2469"]
[BlackElo "2192"]
[TimeControl "180+1"]
[EndTime "8:54:02 PST"]
[Termination "Atousa won by checkmate"]

1. e4 {[%clk 0:02:39.6]} 1... c5 {[%clk 0:02:57.4]} 2. Nf3 {[%clk 0:02:39.9]}
2... Nc6 {[%clk 0:02:57.3]} 3. d4 {[%clk 0:02:40.8]} 3... cxd4 {[%clk
0:02:57.2]} 4. Nxd4 {[%clk 0:02:41.7]} 4... e5 {[%clk 0:02:56.8]} 5. Nb5 {[%clk
0:02:41]} 5... a6 {[%clk 0:02:56.7]} 6. Nd6+ {[%clk 0:02:40.7]} 6... Bxd6 {[%clk
0:02:56.6]} 7. Qxd6 {[%clk 0:02:41.6]} 7... Qe7 {[%clk 0:02:56.6]} 8. Qd1 {[%clk
0:02:41.5]} 8... Nf6 {[%clk 0:02:55.9]} 9. Nc3 {[%clk 0:02:41.8]} 9... d6 {[%clk
0:02:54.7]} 10. Bg5 {[%clk 0:02:40.4]} 10... Be6 {[%clk 0:02:54.6]} 11. Be2
{[%clk 0:02:33]} 11... Rd8 {[%clk 0:02:54.2]} 12. O-O {[%clk 0:02:32.5]} 12...
h6 {[%clk 0:02:53.4]} 13. Bxf6 {[%clk 0:02:31.3]} 13... Qxf6 {[%clk 0:02:48.6]}
14. Bg4 {[%clk 0:02:31.3]} 14... O-O {[%clk 0:02:39.1]} 15. Bxe6 {[%clk
0:02:30.2]} 15... fxe6 {[%clk 0:02:39.1]} 16. Ne2 {[%clk 0:02:23.7]} 16... Qg6
{[%clk 0:02:36.5]} 17. Ng3 {[%clk 0:02:22.7]} 17... d5 {[%clk 0:02:34.3]} 18.
exd5 {[%clk 0:02:19.8]} 18... exd5 {[%clk 0:02:33.4]} 19. c3 {[%clk 0:02:14.6]}
19... Kh7 {[%clk 0:02:29.8]} 20. Qd2 {[%clk 0:02:06.8]} 20... d4 {[%clk
0:02:29.1]} 21. Rad1 {[%clk 0:02:00.8]} 21... dxc3 {[%clk 0:02:14.6]} 22. Qxc3
{[%clk 0:01:56.8]} 22... Nd4 {[%clk 0:02:14.5]} 23. Qe3 {[%clk 0:01:47.8]} 23...
Rde8 {[%clk 0:02:05.7]} 24. Rc1 {[%clk 0:01:29.9]} 24... h5 {[%clk 0:02:03.4]}
25. Rc7 {[%clk 0:01:18.3]} 25... h4 {[%clk 0:02:02.8]} 26. Ne4 {[%clk
0:01:17.8]} 26... Rf4 {[%clk 0:01:51.1]} 27. Re1 {[%clk 0:01:02.2]} 27... Rg4
{[%clk 0:01:45.7]} 28. g3 {[%clk 0:00:55.8]} 28... Rf8 {[%clk 0:01:38.3]} 29. f4
{[%clk 0:00:34.8]} 29... Nf5 {[%clk 0:01:29.3]} 30. Qc5 {[%clk 0:00:34.7]} 30...
Rg8 {[%clk 0:01:16.1]} 31. Qxe5 {[%clk 0:00:26]} 31... hxg3 {[%clk 0:01:11.8]}
32. h3 {[%clk 0:00:18.7]} 32... Qb6+ {[%clk 0:00:45.7]} 33. Kg2 {[%clk
0:00:11.5]} 33... Nh4+ {[%clk 0:00:44.7]} 34. Kf1 {[%clk 0:00:02.5]} 34... g2+
{[%clk 0:00:40.9]} 35. Ke2 {[%clk 0:00:03]} 35... g1=Q {[%clk 0:00:25.7]} 36.
Nf6+ {[%clk 0:00:03.1]} 36... Kh8 {[%clk 0:00:19.5]} 37. Qh5# {[%clk 0:00:03]}
1-0

[Event "Early-Titled-Tuesday-Blitz-February-27-2024"]
[Site "Chess.com"]
[Date "2024.02.27"]
[Round "5"]
[White "viktorgen2021"]
[Black "IMRosen"]
[Result "1-0"]
[WhiteElo "2523"]
[BlackElo "2692"]
[TimeControl "180+1"]
[EndTime "8:54:04 PST"]
[Termination "viktorgen2021 won on time"]

1. d4 {[%clk 0:02:51.8]} 1... d5 {[%clk 0:02:59.6]} 2. c4 {[%clk 0:02:46.7]}
2... e6 {[%clk 0:02:59.9]} 3. Nf3 {[%clk 0:02:46.1]} 3... Nf6 {[%clk 0:02:59.6]}
4. g3 {[%clk 0:02:46.4]} 4... dxc4 {[%clk 0:02:59.5]} 5. Qa4+ {[%clk 0:02:42.5]}
5... Bd7 {[%clk 0:02:34.8]} 6. Qxc4 {[%clk 0:02:41]} 6... c5 {[%clk 0:02:35.5]}
7. Bg2 {[%clk 0:02:37.4]} 7... Bc6 {[%clk 0:02:32.5]} 8. O-O {[%clk 0:02:32.1]}
8... b5 {[%clk 0:02:29.2]} 9. Qc2 {[%clk 0:02:28.5]} 9... Nbd7 {[%clk
0:02:29.4]} 10. dxc5 {[%clk 0:02:07.8]} 10... Bxc5 {[%clk 0:02:25]} 11. b4
{[%clk 0:02:05.5]} 11... Be4 {[%clk 0:02:25.2]} 12. Qb2 {[%clk 0:01:53.8]} 12...
Bb6 {[%clk 0:02:16.3]} 13. Nc3 {[%clk 0:01:49.4]} 13... Bc6 {[%clk 0:02:15.7]}
14. a4 {[%clk 0:01:49.5]} 14... a6 {[%clk 0:02:15]} 15. Rd1 {[%clk 0:01:39.7]}
15... O-O {[%clk 0:02:04.5]} 16. Bf4 {[%clk 0:01:26.8]} 16... Qc8 {[%clk
0:01:39.2]} 17. Rac1 {[%clk 0:00:55.1]} 17... Qb7 {[%clk 0:01:38.8]} 18. a5
{[%clk 0:00:53.9]} 18... Ba7 {[%clk 0:01:36.5]} 19. Ne1 {[%clk 0:00:52.7]} 19...
Bxg2 {[%clk 0:01:21.4]} 20. Nxg2 {[%clk 0:00:53.6]} 20... Ng4 {[%clk 0:01:20.3]}
21. e3 {[%clk 0:00:50.2]} 21... e5 {[%clk 0:01:03.1]} 22. Bg5 {[%clk 0:00:44.9]}
22... f6 {[%clk 0:00:57.8]} 23. Bh4 {[%clk 0:00:43.7]} 23... g5 {[%clk 0:00:53]}
24. Nd5 {[%clk 0:00:37.1]} 24... Bb8 {[%clk 0:00:36.8]} 25. Qe2 {[%clk
0:00:33.2]} 25... h5 {[%clk 0:00:26]} 26. h3 {[%clk 0:00:27.3]} 26... gxh4
{[%clk 0:00:26.1]} 27. hxg4 {[%clk 0:00:26.9]} 27... h3 {[%clk 0:00:27]} 28.
gxh5 {[%clk 0:00:23.6]} 28... f5 {[%clk 0:00:16.5]} 29. Nh4 {[%clk 0:00:23.8]}
29... Bd6 {[%clk 0:00:11.6]} 30. Nxf5 {[%clk 0:00:22.2]} 30... Nf6 {[%clk
0:00:02.6]} 31. Nxd6 {[%clk 0:00:20.9]} 31... Qd7 {[%clk 0:00:01.2]} 32. Nxf6+
{[%clk 0:00:17.4]} 32... Rxf6 {[%clk 0:00:02.1]} 33. Ne4 {[%clk 0:00:17.5]}
33... Rd6 {[%clk 0:00:01.3]} 34. Nf6+ {[%clk 0:00:15.5]} 34... Rxf6 {[%clk
0:00:01.4]} 35. Rxd7 {[%clk 0:00:15.5]} 1-0

[Event "Early-Titled-Tuesday-Blitz-February-27-2024"]
[Site "Chess.com"]
[Date "2024.02.27"]
[Round "5"]
[White "ChessboArt"]
[Black "gm_rashid"]
[Result "1-0"]
[WhiteElo "2269"]
[BlackElo "2426"]
[TimeControl "180+1"]
[EndTime "8:54:04 PST"]
[Termination "ChessboArt won by checkmate"]

1. Nf3 {[%clk 0:02:55.4]} 1... Nf6 {[%clk 0:02:49.7]} 2. g3 {[%clk 0:02:54.8]}
2... g6 {[%clk 0:02:50.1]} 3. Bg2 {[%clk 0:02:55.1]} 3... Bg7 {[%clk 0:02:51]}
4. c4 {[%clk 0:02:55.5]} 4... O-O {[%clk 0:02:51.8]} 5. Nc3 {[%clk 0:02:55.8]}
5... d6 {[%clk 0:02:52.7]} 6. O-O {[%clk 0:02:55.4]} 6... Nc6 {[%clk 0:02:53.6]}
7. Rb1 {[%clk 0:02:55]} 7... e5 {[%clk 0:02:54.5]} 8. d3 {[%clk 0:02:55.4]} 8...
Nh5 {[%clk 0:02:53.6]} 9. b4 {[%clk 0:02:54.4]} 9... f5 {[%clk 0:02:54]} 10. Qb3
{[%clk 0:02:54.3]} 10... f4 {[%clk 0:02:53.6]} 11. c5+ {[%clk 0:02:41.1]} 11...
Kh8 {[%clk 0:02:53.2]} 12. cxd6 {[%clk 0:02:41.4]} 12... cxd6 {[%clk 0:02:54.1]}
13. b5 {[%clk 0:02:32.9]} 13... Ne7 {[%clk 0:02:49.4]} 14. Ng5 {[%clk
0:02:13.7]} 14... Qe8 {[%clk 0:02:27.7]} 15. Ne6 {[%clk 0:01:25.6]} 15... Bxe6
{[%clk 0:02:18.9]} 16. Qxe6 {[%clk 0:01:26.5]} 16... Rf6 {[%clk 0:02:19.6]} 17.
Qb3 {[%clk 0:01:24.3]} 17... Rb8 {[%clk 0:02:15.1]} 18. Ne4 {[%clk 0:01:23.6]}
18... Rf8 {[%clk 0:02:07.3]} 19. Nxd6 {[%clk 0:01:23.5]} 19... Qd7 {[%clk
0:02:07.5]} 20. Nf7+ {[%clk 0:01:22.5]} 20... Kg8 {[%clk 0:02:02.2]} 21. Nh6+
{[%clk 0:01:20.6]} 21... Kh8 {[%clk 0:02:01]} 22. Nf7+ {[%clk 0:01:20.7]} 22...
Rxf7 {[%clk 0:01:57]} 23. Qxf7 {[%clk 0:01:21.6]} 23... Rf8 {[%clk 0:01:57.1]}
24. Qb3 {[%clk 0:01:20]} 24... Nf5 {[%clk 0:01:42.8]} 25. Ba3 {[%clk 0:01:17.8]}
25... Re8 {[%clk 0:01:36.8]} 26. Qd5 {[%clk 0:01:11.2]} 26... Qc7 {[%clk
0:01:22.8]} 27. g4 {[%clk 0:00:58.5]} 27... Qa5 {[%clk 0:00:59.8]} 28. Bb4
{[%clk 0:00:52.1]} 28... Qb6 {[%clk 0:00:37.5]} 29. gxf5 {[%clk 0:00:49.8]}
29... gxf5 {[%clk 0:00:37.2]} 30. Qxb7 {[%clk 0:00:49.6]} 30... Qg6 {[%clk
0:00:36.9]} 31. Kh1 {[%clk 0:00:46.6]} 31... Bf6 {[%clk 0:00:29.4]} 32. Rg1
{[%clk 0:00:45.2]} 32... Qh6 {[%clk 0:00:29.8]} 33. Bf3 {[%clk 0:00:36.4]} 33...
Ng7 {[%clk 0:00:20.3]} 34. Qf7 {[%clk 0:00:31.7]} 34... Rc8 {[%clk 0:00:19.2]}
35. Rbc1 {[%clk 0:00:29.8]} 35... Rd8 {[%clk 0:00:18.8]} 36. Rc6 {[%clk
0:00:27.6]} 36... Rg8 {[%clk 0:00:11]} 37. Rxf6 {[%clk 0:00:25.3]} 37... Qh4
{[%clk 0:00:11.6]} 38. Bf8 {[%clk 0:00:21.7]} 38... Nh5 {[%clk 0:00:09.2]} 39.
Qxg8# {[%clk 0:00:20.9]} 1-0